bitfinex/quotes_BTCUSD_20251104
["timestamp","ask_amount","ask_price","bid_price","bid_amount"]
[1762291919660,3.34,99406.0,99405.0,0.04599418]
[1762291919873,3.54119509,99406.0,99405.0,0.04599418]
[1762291920287,3.34,99406.0,99405.0,0.04599418]
[1762291920508,3.0,99419.0,99405.0,0.04599418]
[1762291920702,0.00999999,99450.0,99405.0,0.04599418]
[1762291920703,3.0,99449.0,99405.0,0.04599418]
[1762291920873,3.0,99479.0,99430.0,0.01005732]
[1762291921108,3.0,99479.0,99440.0,0.01367821]
[1762291921312,0.01005126,99490.0,99450.0,0.0036219]
[1762291921466,0.01005126,99490.0,99441.0,0.09238]
[1762291921467,3.0,99489.0,99460.0,0.0036219]
[1762291921671,3.0,99473.0,99460.0,0.0036219]
[1762291921903,0.02642732,99510.0,99461.0,0.09238]
[1762291922047,3.0,99509.0,99480.0,0.0036219]
[1762291922246,3.0,99499.0,99490.0,0.0036219]
[1762291922457,3.0,99499.0,99480.0,0.00014529]
[1762291922459,3.0,99492.0,99480.0,0.00376719]
[1762291922661,3.0,99482.0,99480.0,0.00014529]
[1762291922868,3.34,99481.0,99480.0,0.00014529]
[1762291923482,3.54104341,99481.0,99480.0,0.00014529]
[1762291923761,3.54104341,99481.0,99434.0,0.04893]
[1762291923762,0.20110555,99451.0,99440.0,0.0036219]
[1762291923909,0.07005125,99490.0,99450.0,0.0036219]
[1762291924113,0.01005025,99500.0,99480.0,0.0036219]
[1762291924310,0.02642631,99520.0,99451.0,0.09238]
[1762291924311,3.0,99496.0,99490.0,0.0036219]
[1762291924492,0.20099793,99504.0,99500.0,0.0036219]
[1762291924689,3.0,99514.0,99500.0,0.0036219]
[1762291924892,0.02642328,99550.0,99510.0,0.0036219]
[1762291924893,3.0,99539.0,99510.0,0.0036219]
[1762291925280,3.0,99539.0,99500.0,0.0036219]
[1762291925281,3.0,99512.0,99500.0,0.0036219]
[1762291925489,3.0,99538.0,99520.0,0.0036219]
[1762291925692,0.20096111,99522.0,99520.0,0.0036219]
[1762291925890,0.20096111,99522.0,99475.0,0.03618228]
[1762291925891,3.0,99521.0,99490.0,0.0036219]
[1762291926062,0.20101585,99495.0,99490.0,0.0036219]
[1762291926287,3.0,99509.0,99500.0,0.0036219]
[1762291926493,3.0,99509.0,99482.0,0.04893]
[1762291926494,0.34,99518.0,99510.0,0.0036219]
[1762291926693,0.34,99514.0,99500.0,0.0036219]
[1762291926920,0.34,99518.0,99500.0,0.0036219]
[1762291927039,0.01004722,99530.0,99500.0,0.0036219]
[1762291927040,3.0,99539.0,99510.0,0.0036219]
[1762291927240,3.0,99538.0,99530.0,0.0036219]
[1762291927662,0.00048466,99539.0,99530.0,0.0036219]
[1762291927663,0.00048466,99539.0,99531.0,0.14131]
[1762291927986,0.00048466,99539.0,99532.0,0.0114413]
[1762291928189,0.00048466,99539.0,99538.0,0.20092828]
[1762291928384,0.00048466,99539.0,99534.0,0.20093636]
[1762291928586,0.00048466,99539.0,99538.0,0.20092828]
[1762291929007,0.00048466,99539.0,99538.0,0.09427877]
[1762291929268,0.00048466,99539.0,99538.0,0.13166345]
[1762291929679,0.00048466,99539.0,99538.0,0.13168914]
[1762291929876,0.00048466,99539.0,99538.0,0.09550686]
[1762291930088,0.00048466,99539.0,99538.0,0.1306831]
[1762291930500,0.01003915,99610.0,99538.0,0.1306831]
[1762291930501,0.01003915,99610.0,99560.0,0.01004419]
[1762291930706,3.34,99600.0,99590.0,0.0036219]
[1762291930911,0.0504,99630.0,99610.0,0.0036219]
[1762291930912,3.0,99629.0,99610.0,0.0036219]
[1762291931113,3.0,99629.0,99576.0,0.09427877]
[1762291931114,0.01003814,99620.0,99590.0,0.0036219]
[1762291931347,0.20079868,99603.0,99600.0,0.0036219]
[1762291931547,0.20081172,99596.0,99590.0,0.0036219]
[1762291931757,0.34,99602.0,99561.0,0.04722]
[1762291931758,0.20080522,99599.0,99580.0,0.0036219]
[1762291931959,3.0,99587.0,99581.0,0.09035]
[1762291932162,0.35003915,99610.0,99581.0,0.09035]
[1762291932163,0.20076692,99618.0,99600.0,0.0036219]
[1762291932371,3.0,99609.0,99600.0,0.0036219]
[1762291932585,3.0,99619.0,99610.0,0.0036219]
[1762291932786,3.0,99629.0,99610.0,0.0036219]
[1762291932987,0.20075886,99622.0,99610.0,0.0036219]
[1762291933184,0.20077399,99615.0,99610.0,0.0036219]
[1762291933388,3.0,99614.0,99610.0,0.0036219]
[1762291933600,3.0,99614.0,99591.0,0.0099407]
[1762291933601,0.20078061,99612.0,99591.0,0.0099407]
[1762291933829,0.20081602,99594.0,99591.0,0.00014611]
[1762291934035,3.54081934,99592.0,99591.0,0.00014611]
[1762291934450,3.34,99592.0,99591.0,0.00014611]
[1762291935270,3.54081934,99592.0,99591.0,0.00014611]
[1762291935473,0.20081648,99594.0,99591.0,0.00014611]
[1762291935616,3.0,99592.0,99591.0,0.00014611]
[1762291935822,3.20076692,99619.0,99591.0,0.00014611]
[1762291936022,3.34,99592.0,99591.0,0.00018611]
[1762291936621,3.0,99556.0,99550.0,0.0036219]
[1762291936831,0.20089801,99553.0,99550.0,0.00014528]
[1762291937030,0.20092223,99541.0,99530.0,0.00235123]
[1762291937237,0.20092223,99541.0,99520.0,0.00235123]
[1762291937238,3.0,99538.0,99520.0,0.00235123]
[1762291937475,3.0,99538.0,99530.0,0.00235123]
[1762291937885,0.20093332,99536.0,99530.0,0.00235123]
[1762291938123,3.0,99538.0,99530.0,0.00235123]
[1762291938335,0.00014533,99541.0,99535.0,0.00372709]
[1762291938568,0.00014533,99541.0,99530.0,0.00235123]
[1762291938569,0.00014533,99541.0,99540.0,0.20092425]
[1762291938969,0.2008274,99588.0,99570.0,0.00235123]
[1762291939171,0.02689888,99587.0,99570.0,0.00235123]
[1762291939410,0.00014609,99588.0,99580.0,0.00235123]
[1762291939617,3.0,99619.0,99610.0,0.00235123]
[1762291939831,0.02695264,99618.0,99610.0,0.00235123]
[1762291940039,0.02695264,99617.0,99611.0,0.09035]
[1762291940281,0.01796843,99616.0,99611.0,0.09035]
[1762291940487,0.00014603,99619.0,99611.0,0.09035]
[1762291940488,0.0089988,99615.0,99611.0,0.09035]
[1762291940633,0.00014603,99619.0,99611.0,0.09035]
[1762291940634,0.00731411,99614.0,99612.0,0.20077902]
[1762291940833,0.00014603,99619.0,99618.0,0.20076692]
[1762291941032,0.01814116,99619.0,99618.0,0.20076692]
[1762291941242,0.00014603,99619.0,99618.0,0.20076692]
[1762291941455,3.0,99618.0,99610.0,0.00235123]
[1762291941622,0.00014603,99619.0,99610.0,0.00235123]
[1762291941623,0.01798733,99617.0,99610.0,0.00235123]
[1762291942010,0.34,99613.0,99610.0,0.00235123]
[1762291942207,3.20078103,99611.0,99610.0,0.00235123]
[1762291942349,3.20078103,99611.0,99591.0,0.09035]
[1762291942350,2.78966732,99610.0,99600.0,0.00235123]
[1762291942570,2.78966732,99610.0,99580.0,0.01004217]
[1762291942571,0.20082135,99591.0,99580.0,0.00235123]
[1762291942772,0.01003915,99610.0,99580.0,0.00235123]
[1762291942773,0.34,99604.0,99580.0,0.00235123]
[1762291942991,0.34,99600.0,99580.0,0.00235123]
[1762291943219,2.78966732,99597.0,99580.0,0.00235123]
[1762291943372,0.20082135,99591.0,99590.0,0.00235123]
[1762291943571,2.99048867,99591.0,99590.0,0.00235123]
[1762291943770,0.34,99601.0,99580.0,0.00235123]
[1762291943986,0.01003915,99610.0,99572.0,0.04722]
[1762291943987,2.78966732,99598.0,99590.0,0.00235123]
[1762291944181,0.01043713,99630.0,99600.0,0.00235123]
[1762291944381,0.20080119,99601.0,99590.0,0.00235123]
[1762291944585,0.34,99600.0,99590.0,0.00235123]
[1762291944839,3.0,99599.0,99590.0,0.00235123]
[1762291945040,0.34,99606.0,99600.0,0.00235123]
[1762291945352,0.34,99604.0,99590.0,0.00235123]
[1762291945486,0.34,99604.0,99580.0,4e-05]
[1762291945487,3.0,99618.0,99610.0,0.00235123]
[1762291945684,3.0,99618.0,99615.0,0.20077125]
[1762291945868,0.0004,99630.0,99611.0,0.29112902]
[1762291946071,3.0,99618.0,99610.0,0.00235123]
[1762291946271,0.20077758,99613.0,99610.0,0.00235123]
[1762291946488,0.34,99615.0,99600.0,0.00235123]
[1762291946727,0.34,99613.0,99600.0,0.00235123]
[1762291946880,3.0,99610.0,99600.0,0.00235123]
[1762291947082,3.0,99610.0,99601.0,0.09035]
[1762291947283,3.0,99616.0,99610.0,0.00235123]
[1762291947523,0.34,99611.0,99610.0,0.00235123]
[1762291947724,0.34,99611.0,99601.0,0.09035]
[1762291947928,0.33972821,99611.0,99601.0,0.09035]
[1762291948130,0.01043713,99630.0,99601.0,0.09035]
[1762291948329,0.0004,99630.0,99610.0,0.00235123]
[1762291948728,3.0,99618.0,99610.0,0.00235123]
[1762291949185,0.0004,99630.0,99617.0,0.20076894]
[1762291949337,0.0004,99630.0,99618.0,0.01118858]
[1762291949540,0.0004,99650.0,99618.0,0.01118858]
[1762291949541,0.0004,99650.0,99649.0,0.20070447]
[1762291949741,0.0004,99650.0,99649.0,0.24792447]
[1762291949742,0.00088667,99650.0,99649.0,0.24792447]
[1762291951409,0.00088667,99650.0,99649.0,0.04722]
[1762291951791,0.00088667,99650.0,99649.0,0.04726]
[1762291952055,0.00088667,99650.0,99649.0,0.05725435]
[1762291952275,0.00088667,99650.0,99649.0,0.04726]
[1762291952492,0.00088667,99650.0,99649.0,0.0473]
[1762291952709,0.00088667,99650.0,99649.0,0.04734]
[1762291953141,0.00088667,99650.0,99649.0,0.14105]
[1762291953797,0.00088667,99650.0,99649.0,0.04734]
[1762291954023,3.00088667,99650.0,99649.0,0.00012]
[1762291954299,3.34088667,99650.0,99649.0,0.00012]
[1762291954514,3.36805164,99650.0,99649.0,0.00012]
[1762291954722,3.39994222,99650.0,99649.0,0.00012]
[1762291955019,3.36805296,99650.0,99649.0,0.00012]
[1762291955251,0.20079295,99606.0,99592.0,0.09371]
[1762291955495,3.20079856,99603.0,99590.0,0.00235123]
[1762291955732,3.00905555,99602.0,99590.0,0.00235123]
[1762291955945,3.34905555,99602.0,99590.0,0.00235123]
[1762291956147,3.34905555,99602.0,99600.0,8.833e-05]
[1762291956397,3.35814622,99602.0,99600.0,8.833e-05]
[1762291956605,3.35814622,99602.0,99601.0,0.00022603]
[1762291957404,3.35814622,99602.0,99580.0,8e-05]
[1762291957405,3.20080724,99599.0,99580.0,8e-05]
[1762291957633,3.54084152,99581.0,99580.0,8e-05]
[1762291957833,3.55898774,99581.0,99580.0,8e-05]
[1762291958041,0.01004318,99570.0,99540.0,0.14170123]
[1762291958216,3.0,99555.0,99540.0,0.00291499]
[1762291958427,0.34,99569.0,99540.0,0.00291499]
[1762291958428,0.20090161,99552.0,99540.0,0.00291499]
[1762291958626,3.20092223,99541.0,99540.0,0.00056376]
[1762291958827,0.20091214,99546.0,99540.0,0.00056376]
[1762291959028,3.0,99541.0,99540.0,0.00056376]
[1762291959253,3.0,99544.0,99540.0,0.00056376]
[1762291959424,3.0,99542.0,99540.0,0.00056376]
[1762291959610,3.5181593,99541.0,99540.0,0.00056376]
[1762291959814,3.0181593,99541.0,99540.0,0.00056376]
[1762291960083,3.3581593,99541.0,99540.0,0.00036666]
[1762291961125,3.0181593,99541.0,99540.0,0.00036666]
[1762291961720,0.0181593,99541.0,99540.0,0.00036666]
[1762291961950,0.05,99570.0,99540.0,0.09915666]
[1762291962160,3.0,99568.0,99560.0,0.00235123]
[1762291962361,3.0,99568.0,99540.0,0.10920287]
[1762291962362,0.20088794,99558.0,99540.0,0.00271789]
[1762291962762,0.01004318,99570.0,99540.0,0.00036666]
[1762291962763,0.34,99554.0,99540.0,0.00036666]
[1762291962969,0.06004318,99570.0,99500.0,0.11005025]
[1762291962970,3.0,99541.0,99520.0,0.00235123]
[1762291963176,0.34,99542.0,99458.0,0.05]
[1762291963177,0.01005025,99500.0,99458.0,0.05]
[1762291963388,3.0,99489.0,99458.0,0.05048466]
[1762291963589,0.01005126,99490.0,99458.0,0.05048466]
[1762291963590,0.34,99485.0,99458.0,0.00048466]
[1762291963796,0.34,99483.0,99458.0,0.09927466]
[1762291964009,0.00999999,99510.0,99458.0,0.09927466]
[1762291964010,0.20099718,99504.0,99470.0,0.01005328]
[1762291964241,0.01004823,99520.0,99470.0,0.01005328]
[1762291964242,0.0181029,99503.0,99470.0,0.01005328]
[1762291964461,0.20094882,99528.0,99504.0,0.20099562]
[1762291964698,0.01808021,99527.0,99500.0,0.01005025]
[1762291964932,0.0600452,99550.0,99500.0,0.01005025]
[1762291964933,3.01808328,99526.0,99500.0,0.01005025]
[1762291965158,0.0600452,99550.0,99501.0,0.10990672]
[1762291965159,0.01808328,99525.0,99501.0,0.10990672]
[1762291965378,3.0,99545.0,99510.0,0.01004924]
[1762291965581,0.20092037,99542.0,99521.0,0.20096156]
[1762291965786,0.01807869,99541.0,99522.0,0.00855844]
[1762291965990,3.0,99554.0,99512.0,0.00861991]
[1762291966193,3.0,99552.0,99520.0,0.01004823]
[1762291966394,3.0,99552.0,99530.0,0.01004722]
[1762291966395,0.01807987,99551.0,99530.0,0.01004722]
[1762291966597,3.0,99549.0,99530.0,0.01004722]
[1762291966803,3.0,99549.0,99531.0,0.09879]
[1762291967010,0.01004318,99570.0,99513.0,0.09879]
[1762291967011,0.0100452,99550.0,99513.0,0.09879]
[1762291967214,0.0100452,99550.0,99510.0,0.00048466]
[1762291967215,3.0,99539.0,99510.0,0.00048466]
[1762291967433,3.0,99511.0,99510.0,0.00048466]
[1762291968256,3.0,99513.0,99510.0,0.00048466]
[1762291968466,3.0,99539.0,99510.0,0.00048466]
[1762291968673,0.01004318,99570.0,99537.0,0.2009303]
[1762291968674,0.01805781,99538.0,99537.0,0.2009303]
[1762291968878,0.12203521,99566.0,99524.0,0.09879]
[1762291968879,0.20090947,99548.0,99524.0,0.09879]
[1762291969076,0.01004318,99570.0,99538.0,0.20092717]
[1762291969284,0.20087868,99563.0,99541.0,0.20092091]
[1762291969491,0.20089734,99554.0,99524.0,0.09879]
[1762291969689,0.01004419,99560.0,99524.0,0.09879]
[1762291969890,0.20083854,99583.0,99540.0,0.01004621]
[1762291970077,0.20085967,99574.0,99540.0,0.01004621]
[1762291970279,0.05,99590.0,99540.0,0.01004621]
[1762291970280,0.20088348,99561.0,99540.0,0.01004621]
[1762291970500,0.05,99590.0,99540.0,0.00014157]
[1762291970501,0.20092223,99541.0,99540.0,0.00014157]
[1762291970673,3.54092223,99541.0,99540.0,0.00014157]
[1762291970831,3.55950828,99541.0,99540.0,0.00014157]
[1762291971626,3.55897241,99541.0,99540.0,0.00014157]
[1762291971768,0.55897241,99541.0,99540.0,0.00014157]
[1762291971964,0.01805018,99541.0,99540.0,0.00014157]
[1762291972165,3.0,99569.0,99540.0,0.00014157]
[1762291972376,3.0,99567.0,99541.0,0.09879]
[1762291972579,3.0,99565.0,99540.0,0.00014157]
[1762291972776,0.01804045,99564.0,99540.0,0.00014157]
[1762291972978,0.01004318,99570.0,99540.0,0.00014157]
[1762291972979,0.01804045,99563.0,99540.0,0.00014157]
[1762291973186,0.2008942,99555.0,99540.0,0.00014157]
[1762291973388,3.0,99562.0,99540.0,0.00014157]
[1762291973589,0.06004318,99570.0,99540.0,0.00014157]
[1762291973590,3.20086774,99569.0,99540.0,0.00014157]
[1762291973803,0.018033,99568.0,99540.0,0.00014157]
[1762291974133,3.0,99566.0,99540.0,0.00014157]
[1762291974347,3.0,99564.0,99540.0,0.00014157]
[1762291974554,0.20092156,99542.0,99540.0,0.00014157]
[1762291974766,3.0,99541.0,99540.0,0.00014157]
[1762291974976,3.0,99503.0,99442.0,0.0099407]
[1762291975197,0.2010124,99497.0,99466.0,0.20107255]
[1762291975400,0.2010124,99497.0,99460.0,0.01053895]
[1762291975401,3.0,99499.0,99472.0,0.09879]
[1762291975524,3.0,99489.0,99460.0,0.00048466]
[1762291975734,3.0,99488.0,99460.0,0.00048466]
[1762291975922,0.2010801,99463.0,99460.0,0.00048466]
[1762291976327,0.20108277,99462.0,99460.0,0.00048466]
[1762291976535,3.0,99461.0,99460.0,0.00048466]
[1762291976735,3.3406966,99461.0,99460.0,0.00048466]
[1762291977140,3.54108586,99461.0,99460.0,0.00565916]
[1762291977766,0.54112428,99441.0,99440.0,0.0002]
[1762291977986,0.54112428,99441.0,99440.0,0.00034157]
[1762291977987,3.54112428,99441.0,99440.0,0.00034157]
[1762291978377,3.54188573,99441.0,99440.0,0.00034157]
[1762291978580,3.54112428,99441.0,99440.0,0.00034157]
[1762291978795,0.34,99438.0,99402.0,0.54393939]
[1762291979035,3.0,99429.0,99405.0,0.04599418]
[1762291979250,0.34,99427.0,99405.0,0.04599418]
[1762291979452,0.34,99427.0,99402.0,0.54393939]
[1762291979453,0.20119286,99408.0,99402.0,0.12159401]
[1762291979660,0.20119286,99408.0,99382.0,2.0]
[1762291979661,0.54123153,99388.0,99387.0,0.13512933]
[1762291979871,0.20123963,99384.0,99382.0,1.74368563]
[1762291980079,0.23002277,99393.0,99382.0,1.74368563]
[1762291980310,3.0,99406.0,99382.0,1.74368563]
[1762291980515,0.20124166,99383.0,99382.0,1.74368563]
[1762291980940,0.20123615,99386.0,99382.0,1.74368563]
[1762291981140,0.20123936,99385.0,99382.0,1.74368563]
[1762291981369,0.01005935,99410.0,99382.0,1.74368563]
[1762291981632,0.2012376,99386.0,99382.0,1.74368563]
[1762291981892,0.06005935,99410.0,99382.0,1.74368563]
[1762291981893,0.20123762,99385.0,99382.0,1.74368563]
[1762291982161,0.20124166,99383.0,99382.0,1.74368563]
[1762291982436,0.01005935,99410.0,99382.0,1.74368563]
[1762291982722,0.20123445,99387.0,99382.0,1.74372563]
[1762291983028,3.20124166,99383.0,99382.0,1.74372563]
[1762291983494,0.20200311,99383.0,99382.0,1.74376563]
[1762291983764,0.20122403,99392.0,99382.0,1.74376563]
[1762291983765,0.01005935,99410.0,99382.0,1.74376563]
[1762291983994,0.02005731,99430.0,99382.0,1.74376563]
[1762291983995,0.01795401,99407.0,99383.0,0.09879]
[1762291984205,0.06005732,99430.0,99383.0,0.09879]
[1762291984206,0.01795401,99406.0,99389.0,0.20122796]
[1762291984422,0.01795401,99406.0,99383.0,0.09879]
[1762291984423,0.01795401,99405.0,99390.0,0.09879]
[1762291984629,0.20113714,99435.0,99390.0,0.09879]
[1762291984630,0.20112353,99442.0,99404.0,0.05]
[1762291984841,0.0100553,99450.0,99404.0,0.05]
[1762291985048,0.01005631,99440.0,99405.0,0.1181772]
[1762291985261,0.01005631,99440.0,99405.0,0.09879]
[1762291985466,0.01005429,99460.0,99405.0,0.09879]
[1762291985467,0.06005429,99460.0,99410.0,0.01005935]
[1762291985693,0.01005328,99470.0,99420.0,0.01005833]
[1762291985918,0.20109715,99455.0,99421.0,0.02011647]
[1762291986154,0.20109715,99455.0,99420.0,0.05999999]
[1762291986155,0.20109597,99455.0,99427.0,0.09427877]
[1762291986366,0.20109966,99454.0,99422.0,0.09879]
[1762291986594,0.20112769,99440.0,99422.0,0.09879]
[1762291986844,0.01005429,99460.0,99423.0,0.02011606]
[1762291987055,0.01005429,99460.0,99424.0,0.09879]
[1762291987269,0.01005631,99440.0,99404.0,0.05014152]
[1762291987476,0.01005429,99460.0,99416.0,0.20117417]
[1762291987477,0.201106,99451.0,99416.0,0.20117417]
[1762291987688,0.06005328,99470.0,99420.0,0.01005833]
[1762291987925,0.01005429,99460.0,99414.0,0.20117882]
[1762291988226,0.01005429,99460.0,99410.0,0.01005935]
[1762291988227,0.0100553,99450.0,99412.0,0.09879]
[1762291988422,0.21118359,99440.0,99420.0,4e-05]
[1762291988652,0.01005631,99440.0,99420.0,4e-05]
[1762291988882,0.20116474,99421.0,99420.0,4e-05]
[1762291989134,0.34,99421.0,99420.0,4e-05]
[1762291989341,0.34,99439.0,99420.0,8e-05]
[1762291989585,0.20116474,99421.0,99420.0,0.00012]
[1762291989795,0.20114166,99433.0,99420.0,0.00016]
[1762291990012,0.0100553,99450.0,99421.0,0.09879]
[1762291990259,0.05,99480.0,99430.0,0.01005732]
[1762291990487,0.05,99480.0,99440.0,0.01005631]
[1762291990488,0.20105914,99474.0,99440.0,0.01005631]
[1762291990728,0.20101615,99495.0,99463.0,0.20107802]
[1762291990965,0.06005025,99500.0,99450.0,0.0100553]
[1762291990966,0.20104207,99482.0,99450.0,0.0100553]
[1762291991185,0.01083371,99490.0,99451.0,0.0200691]
[1762291991412,3.0,99499.0,99460.0,0.01005429]
[1762291991646,0.01005025,99500.0,99461.0,0.02010838]
[1762291991892,0.20105032,99478.0,99460.0,0.00014152]
[1762291992131,0.20102724,99489.0,99461.0,0.09808]
[1762291992374,0.01004823,99520.0,99488.0,0.04571]
[1762291992605,0.01004823,99520.0,99494.0,0.20101618]
[1762291992606,0.20097068,99517.0,99494.0,0.20101618]
[1762291992842,0.01004722,99530.0,99490.0,0.01005126]
[1762291992843,0.2009583,99524.0,99490.0,0.01005126]
[1762291993065,0.01004722,99530.0,99490.0,0.01005126]
[1762291993066,0.20096643,99520.0,99490.0,0.01005126]
[1762291993291,0.05,99540.0,99491.0,0.10035777]
[1762291993292,0.01004621,99540.0,99491.0,0.10035777]
[1762291993527,0.20091095,99547.0,99516.0,0.20097189]
[1762291993729,0.00240053,99518.0,99490.0,0.06005126]
[1762291993936,0.00240053,99518.0,99508.0,0.09808]
[1762291994665,0.20089402,99555.0,99520.0,0.01004823]
[1762291994870,0.20091656,99544.0,99521.0,0.14379]
[1762291995076,0.20091848,99543.0,99521.0,0.09632092]
[1762291995278,0.00900876,99542.0,99526.0,0.20095222]
[1762291995484,0.00023152,99527.0,99525.0,0.20095379]
[1762291995697,0.00023152,99527.0,99526.0,0.01105241]
[1762291995899,0.00023152,99527.0,99526.0,0.02009525]
[1762291996133,0.00023152,99527.0,99526.0,0.11437402]
[1762291996567,0.00023152,99527.0,99526.0,0.02009525]
[1762291996785,0.00023152,99527.0,99521.0,0.04571]
[1762291996995,0.0180257,99526.0,99521.0,0.04571]
[1762291997224,0.00023152,99527.0,99522.0,0.29904059]
[1762291997432,0.00023152,99527.0,99526.0,0.20095251]
[1762291998515,0.00023152,99527.0,99521.0,0.04575]
[1762291998731,0.20096059,99522.0,99521.0,8e-05]
[1762291999379,3.54096059,99522.0,99521.0,8e-05]
[1762291999708,0.54096059,99522.0,99521.0,8e-05]
[1762291999897,3.54096059,99522.0,99521.0,8e-05]
[1762292000101,0.54098684,99509.0,99476.0,0.04571]
[1762292000300,0.01005025,99500.0,99463.0,0.09808]
[1762292000511,0.20107567,99466.0,99463.0,0.00048542]
[1762292000713,0.20102926,99488.0,99463.0,0.00048542]
[1762292000860,0.06005126,99490.0,99463.0,0.00048542]
[1762292000861,0.34,99468.0,99463.0,0.00048542]
[1762292001064,0.01005126,99490.0,99463.0,0.00048542]
[1762292001252,3.0,99479.0,99463.0,0.00048542]
[1762292001451,0.20105149,99477.0,99463.0,0.00048542]
[1762292001651,0.20107523,99466.0,99463.0,0.00048542]
[1762292002524,0.54107777,99464.0,99463.0,0.00048542]
[1762292002732,0.54108384,99461.0,99451.0,8e-05]
[1762292002868,0.54110203,99452.0,99451.0,0.00022149]
[1762292003205,0.35803082,99452.0,99451.0,0.00022149]
[1762292003386,0.01803082,99452.0,99451.0,0.00022149]
[1762292003592,0.01005227,99480.0,99451.0,0.00022149]
[1762292003828,0.01804086,99479.0,99452.0,0.09808]
[1762292004017,3.0,99477.0,99451.0,0.00022149]
[1762292004220,0.01005227,99480.0,99451.0,0.00022149]
[1762292004221,0.20108263,99462.0,99451.0,0.00022149]
[1762292004427,3.0,99484.0,99452.0,0.09808]
[1762292004644,3.0,99482.0,99460.0,0.01005429]
[1762292004889,0.20102075,99493.0,99460.0,0.06005429]
[1762292005089,0.01004924,99510.0,99461.0,0.09921998]
[1762292005090,0.01805727,99492.0,99461.0,0.09921998]
[1762292005203,0.01805727,99491.0,99478.0,0.20104762]
[1762292005420,0.01805727,99490.0,99461.0,0.09808]
[1762292005625,0.20097413,99516.0,99460.0,0.01005429]
[1762292005626,0.20099448,99506.0,99462.0,0.09808]
[1762292005821,0.5,99514.0,99462.0,0.09808]
[1762292005822,0.00902791,99505.0,99462.0,0.09808]
[1762292006076,0.20098617,99510.0,99486.0,0.20103329]
[1762292006384,0.20099788,99504.0,99484.0,0.20103735]
[1762292006611,0.01004823,99520.0,99483.0,0.09808]
[1762292006612,3.0,99519.0,99483.0,0.09808]
[1762292006815,0.34,99508.0,99470.0,0.01005328]
[1762292006985,0.34,99508.0,99450.0,0.07005529]
[1762292006986,0.01005025,99500.0,99461.0,0.01032695]
[1762292007165,0.01005126,99490.0,99461.0,0.10854844]
[1762292007374,0.34,99488.0,99461.0,0.00014149]
[1762292007582,0.20107952,99464.0,99461.0,0.00014149]
[1762292007758,0.20107363,99467.0,99461.0,0.00014149]
[1762292008118,0.34,99481.0,99461.0,0.00014149]
[1762292008314,0.20108133,99463.0,99461.0,0.00014149]
[1762292008462,0.20107535,99466.0,99461.0,0.00014149]
[1762292008670,0.01005025,99500.0,99461.0,0.00014149]
[1762292008671,0.01005025,99500.0,99462.0,0.09808]
[1762292008874,0.20101577,99495.0,99473.0,0.20105813]
[1762292009070,0.01005025,99500.0,99462.0,0.09808]
[1762292009279,0.20102324,99491.0,99470.0,0.20106441]
[1762292009484,0.34,99509.0,99471.0,0.11238533]
[1762292009721,0.01004924,99510.0,99488.0,0.201028]
[1762292009982,0.01004924,99510.0,99472.0,0.09808]
[1762292010120,0.20102175,99492.0,99472.0,0.09808]
[1762292010329,0.01005126,99490.0,99461.0,0.00014149]
[1762292010763,0.2010809,99463.0,99461.0,0.00014149]
[1762292011355,0.34,99475.0,99461.0,0.00014149]
[1762292011586,0.20105465,99476.0,99461.0,0.00014149]
[1762292011781,0.20106722,99470.0,99462.0,0.09592]
[1762292011957,0.34,99486.0,99462.0,0.09592]
[1762292012159,0.01005126,99490.0,99462.0,0.09592]
[1762292012473,0.01004924,99510.0,99470.0,0.01005328]
[1762292012793,0.01004924,99510.0,99475.0,0.20105537]
[1762292012968,0.20098684,99509.0,99476.0,0.01052398]
[1762292013183,0.01005025,99500.0,99472.0,0.11104524]
[1762292013416,3.0,99489.0,99459.0,0.09592]
[1762292013632,0.01005126,99490.0,99448.0,0.09592]
[1762292013833,0.34,99488.0,99448.0,0.09592]
[1762292014166,0.34,99488.0,99440.0,0.01005631]
[1762292014167,0.34,99481.0,99462.0,0.09592]
[1762292014375,0.01005126,99490.0,99451.0,0.00031178]
[1762292014526,0.34,99487.0,99451.0,0.00031178]
[1762292014737,0.20107903,99464.0,99451.0,0.00031178]
[1762292015319,0.02004923,99510.0,99477.0,0.20105061]
[1762292015544,0.00905453,99509.0,99478.0,0.10146672]
[1762292015771,0.00191509,99518.0,99479.0,0.00797417]
[1762292015772,0.00905453,99508.0,99479.0,0.00797417]
[1762292015904,0.01004924,99510.0,99479.0,0.09592]
[1762292016129,0.20097068,99517.0,99480.0,0.11607812]
[1762292016331,0.34,99516.0,99480.0,0.07179935]
[1762292016539,0.34,99516.0,99462.0,0.10421947]
[1762292016540,0.34,99490.0,99464.0,0.20107651]
[1762292016751,0.21105729,99500.0,99470.0,0.01005328]
[1762292016954,0.20099575,99505.0,99485.0,0.20103431]
[1762292017184,0.01005025,99500.0,99472.0,0.2010616]
[1762292017378,0.01005025,99500.0,99471.0,0.09592]
[1762292017604,0.01005126,99490.0,99421.0,0.09427877]
[1762292017801,0.20108182,99462.0,99438.0,0.09592]
[1762292018007,0.20110203,99452.0,99451.0,1e-08]
[1762292018206,3.55923084,99452.0,99451.0,1e-08]
[1762292018624,3.56829564,99452.0,99451.0,1e-08]
[1762292018846,3.56829564,99452.0,99420.0,0.29724622]
[1762292018847,0.02719361,99452.0,99420.0,0.29724622]
[1762292018993,0.34,99448.0,99420.0,0.09620175]
[1762292019199,0.20112579,99441.0,99422.0,0.20116155]
[1762292019406,0.20113642,99435.0,99420.0,0.09620175]
[1762292019621,0.01812881,99434.0,99420.0,0.00028175]
[1762292019803,0.01813441,99433.0,99420.0,0.00028175]
[1762292020004,0.01813441,99432.0,99420.0,0.00028175]
[1762292020202,0.01813441,99431.0,99420.0,0.00028175]
[1762292020404,0.01813441,99430.0,99420.0,0.00028175]
[1762292020609,0.01952,99468.0,99421.0,0.09972]
[1762292020865,0.01813272,99464.0,99422.0,0.00815371]
[1762292021056,0.01813272,99464.0,99421.0,0.09972]
[1762292021057,0.01813272,99463.0,99435.0,0.09427877]
[1762292021305,0.20109254,99457.0,99437.0,0.20113237]
[1762292021480,0.20110696,99450.0,99428.0,0.2011497]
[1762292021686,0.20110235,99452.0,99438.0,0.09972]
[1762292021896,0.20108788,99459.0,99438.0,0.09972]
[1762292022138,0.01813998,99458.0,99440.0,0.09427877]
[1762292022328,0.20102926,99489.0,99440.0,0.15433508]
[1762292022540,0.20105619,99475.0,99441.0,0.09972]
[1762292022747,0.01814175,99474.0,99457.0,0.09427877]